[Event "49th Rilton Cup 2019-20"]
[Site "Stockholm"]
[Date "2019.12.30"]
[Round "4.2"]
[White "Moradiabadi, Elshan"]
[Black "Hillarp Persson, Tiger"]
[Result "1-0"]
[ECO "B06"]
[WhiteElo "2539"]
[BlackElo "2537"]
[Annotator "ChessBase"]
[PlyCount "120"]
[EventDate "2019.12.27"]
[EventType "swiss"]
[EventCountry "SWE"]
[SourceTitle "playchess.com"]
[Source "ChessBase"]
[SourceQuality "1"]
[TimeControl "40/5400+30:1800+30"]

1. e4 {[%emt 0:01:00]} g6 {[%emt 0:00:00]} 2. d4 {[%emt 0:00:37]} Bg7 {[%emt 0:00:01]} 3. Nf3 {[%emt 0:00:02]} d6 {[%emt 0:00:12]} 4. Nbd2 {[%emt 0:00:08]} Nf6 {[%emt 0:04:10]} 5. Bb5+ {[%emt 0:00:52]} c6 {[%emt 0:01:26]} 6. Bd3 {[%emt 0:00:01]} Qc7 {[%emt 0:07:39]} 7. O-O {[%emt 0:00:07]} Nbd7 {[%emt 0:00:17]} 8. Re1 {[%emt 0:03:26]} e5 {[%emt 0:00:36]} 9. c3 {[%emt 0:00:06]} O-O {[%emt 0:00:29]} 10. a4 {[%emt 0:03:57]} Re8 {[%emt 0:11:33]} 11. a5 {[%emt 0:07:10]} Rb8 {[%emt 0:02:05]} 12. Nf1 {[%emt 0:20:43]} b5 {[%emt 0:05:59]} 13. axb6 {[%emt 0:02:50]} axb6 {[%emt 0:00:39]} 14. Bg5 {[%emt 0:00:13]} h6 {[%emt 0:05:23]} 15. Bd2 {[%emt 0:01:35]} Nf8 {[%emt 0:08:53]} 16. h3 {[%emt 0:00:50]} Ne6 {[%emt 0:06:53]} 17. Ng3 {[%emt 0:01:51]} Nf4 {[%emt 0:03:38]} 18. Bxf4 {[%emt 0:03:04]} exf4 {[%emt 0:00:08]} 19. Nf1 {[%emt 0:00:02]} g5 {[%emt 0:12:01]} 20. N1d2 {[%emt 0:06:45]} Be6 {[%emt 0:01:51]} 21. Qc2 {[%emt 0:01:18]} Ra8 {[%emt 0:02:35]} 22. Rxa8 {[%emt 0:04:08]} Rxa8 {[%emt 0:00:07]} 23. Bc4 {[%emt 0:06:25]} d5 {[%emt 0:02:40]} 24. exd5 {[%emt 0:00:03]} Nxd5 {[%emt 0:00:17]} 25. Bd3 {[%emt 0:00:03]} Ne7 {[%emt 0:03:29]} 26. Qd1 {[%emt 0:07:31]} Rd8 {[%emt 0:07:49]} 27. Qe2 {[%emt 0:01:47]} c5 {[%emt 0:00:51]} 28. dxc5 {[%emt 0:00:22]} Qxc5 {[%emt 0:00:14]} 29. Bc2 {[%emt 0:02:25]} b5 {[%emt 0:06:16]} 30. Nb3 {[%emt 0:00:45]} Qc4 {[%emt 0:04:03]} 31. Nbd4 {[%emt 0:00:02]} Qxe2 {[%emt 0:01:31]} 32. Rxe2 {[%emt 0:00:02]} b4 {[%emt 0:00:23]} 33. Nxe6 {[%emt 0:01:30]} fxe6 {[%emt 0:00:09]} 34. cxb4 {[%emt 0:00:03]} Kf7 {[%emt 0:01:34]} 35. b5 {[%emt 0:05:16]} Nf5 {[%emt 0:00:46]} 36. Bb3 {[%emt 0:15:01]} Rd6 {[%emt 0:00:07]} 37. Ne5+ {[%emt 0:01:34]} Bxe5 {[%emt 0:00:07]} 38. Rxe5 {[%emt 0:00:01]} Kf6 {[%emt 0:00:58]} 39. Rc5 {[%emt 0:00:10]} Nd4 {[%emt 0:00:56]} 40. Bc4 {[%emt 0:00:09]} Rd8 {[%emt 0:00:31]} 41. Rc7 {[%emt 0:33:34]} Rd6 {[%emt 0:17:52]} 42. Rb7 {[%emt 0:00:00]} h5 {[%emt 0:05:05]} 43. b6 {[%emt 0:00:00]} g4 {[%emt 0:08:19]} 44. hxg4 {[%emt 0:00:00]} hxg4 {[%emt 0:00:07]} 45. Rb8 {[%emt 0:00:00]} Ke5 {[%emt 0:00:20]} 46. Kf1 {[%emt 0:00:00]} f3 {[%emt 0:00:23]} 47. gxf3 {[%emt 0:00:00]} gxf3 {[%emt 0:00:22]} 48. Kg1 {[%emt 0:00:00]} Ke4 {[%emt 0:01:09]} 49. b7 {[%emt 0:00:00]} Rb6 {[%emt 0:00:14]} 50. Bd5+ {[%emt 0:00:00]} Kd3 {[%emt 0:01:17]} 51. Rd8 {[%emt 0:00:06]} Ne2+ {[%emt 0:00:30]} 52. Kf1 {[%emt 0:00:30]} exd5 {[%emt 0:00:11]} 53. b8=Q {[%emt 0:00:03]} Rxb8 {[%emt 0:00:11]} 54. Rxb8 {[%emt 0:00:02]} d4 {[%emt 0:00:29]} 55. b4 {[%emt 0:01:55]} Kc4 {[%emt 0:01:11]} 56. b5 {[%emt 0:01:24]} Kc5 {[%emt 0:00:20]} 57. Ke1 {[%emt 0:00:44]} Nc3 {[%emt 0:00:07]} 58. b6 {[%emt 0:00:10]} Kc6 {[%emt 0:00:16]} 59. b7 {[%emt 0:02:39]} Nb5 {[%emt 0:00:26]} 60. Kd2 {[%emt 0:00:15]} Kc7 {[%emt 0:01:10]} 1-0

[Event "49th Rilton Cup 2019-20"]
[Site "Stockholm"]
[Date "2019.12.30"]
[Round "4.5"]
[White "Pantzar, Milton"]
[Black "Kulaots, Kaido"]
[Result "1-0"]
[ECO "E10"]
[WhiteElo "2410"]
[BlackElo "2538"]
[Annotator "ChessBase"]
[PlyCount "55"]
[EventDate "2019.12.27"]
[EventType "swiss"]
[EventCountry "SWE"]
[SourceTitle "playchess.com"]
[Source "ChessBase"]
[SourceQuality "1"]
[TimeControl "40/5400+30:1800+30"]

1. d4 {[%emt 0:00:00]} Nf6 {[%emt 0:00:00]} 2. c4 {[%emt 0:00:00]} e6 {[%emt 0:00:00]} 3. Nf3 {[%emt 0:00:07]} d5 {[%emt 0:05:12]} 4. g3 {[%emt 0:00:18]} a6 {[%emt 0:02:57]} 5. Bg2 {[%emt 0:02:50]} dxc4 {[%emt 0:00:52]} 6. O-O {[%emt 0:00:46]} Nc6 {[%emt 0:02:56]} 7. e3 {[%emt 0:01:26]} Rb8 {[%emt 0:02:56]} 8. Nfd2 {[%emt 0:01:55]} e5 {[%emt 0:02:16]} 9. Bxc6+ {[%emt 0:01:09]} bxc6 {[%emt 0:00:05]} 10. dxe5 {[%emt 0:00:07]} Ng4 {[%emt 0:01:14]} 11. Nxc4 {[%emt 0:00:18]} Be6 {[%emt 0:09:00]} 12. Nbd2 {[%emt 0:01:57]} h5 {[%emt 0:06:02]} 13. f3 {[%emt 0:08:45]} Qd3 {[%emt 0:19:34]} 14. fxg4 {[%emt 0:06:25]} hxg4 {[%emt 0:00:13]} 15. b3 {[%emt 0:16:18]} Bc5 {[%emt 0:07:12]} 16. Qe1 {[%emt 0:08:22]} Bd5 {[%emt 0:23:21]} 17. Rf2 {[%emt 0:07:18]} Rh3 {[%emt 0:07:34]} 18. Qe2 {[%emt 0:12:18]} Qg6 {[%emt 0:00:09]} 19. Bb2 {[%emt 0:04:11]} Ke7 {[%emt 0:05:49]} 20. Bd4 {[%emt 0:02:31]} Bxd4 {[%emt 0:00:34]} 21. exd4 {[%emt 0:00:11]} Rbh8 {[%emt 0:00:05]} 22. Nf1 {[%emt 0:00:55]} c5 {[%emt 0:00:16]} 23. Nce3 {[%emt 0:04:09]} Bf3 {[%emt 0:00:35]} 24. Qc2 {[%emt 0:03:08]} Qxc2 {[%emt 0:01:14]} 25. Nxc2 {[%emt 0:00:09]} Rd8 {[%emt 0:00:24]} 26. dxc5 {[%emt 0:01:05]} Rd5 {[%emt 0:00:04]} 27. Re1 {[%emt 0:00:43]} Rxc5 {[%emt 0:00:07]} 28. Nd4 {[%emt 0:00:10]} 1-0

[Event "49th Rilton Cup 2019-20"]
[Site "Stockholm"]
[Date "2019.12.30"]
[Round "4.6"]
[White "Blomqvist, Erik"]
[Black "Mikalsen, Erlend"]
[Result "1/2-1/2"]
[ECO "B51"]
[WhiteElo "2537"]
[BlackElo "2361"]
[Annotator "ChessBase"]
[PlyCount "138"]
[EventDate "2019.12.27"]
[EventType "swiss"]
[EventCountry "SWE"]
[SourceTitle "playchess.com"]
[Source "ChessBase"]
[SourceQuality "1"]
[TimeControl "40/5400+30:1800+30"]

1. e4 {[%emt 0:00:00]} c5 {[%emt 0:00:00]} 2. Nf3 {[%emt 0:00:00]} d6 {[%emt 0:00:59]} 3. Bb5+ {[%emt 0:00:13]} Nd7 {[%emt 0:00:06]} 4. d4 {[%emt 0:00:54]} cxd4 {[%emt 0:00:07]} 5. Qxd4 {[%emt 0:00:05]} a6 {[%emt 0:00:08]} 6. Bxd7+ {[%emt 0:00:06]} Bxd7 {[%emt 0:00:04]} 7. Nc3 {[%emt 0:00:11]} e5 {[%emt 0:00:58]} 8. Qd3 {[%emt 0:00:19]} h6 {[%emt 0:00:28]} 9. O-O {[%emt 0:00:43]} Nf6 {[%emt 0:00:34]} 10. Nd2 {[%emt 0:00:38]} Rc8 {[%emt 0:01:29]} 11. Nc4 {[%emt 0:01:53]} Be6 {[%emt 0:00:47]} 12. Ne3 {[%emt 0:00:13]} Be7 {[%emt 0:00:46]} 13. a4 {[%emt 0:01:37]} O-O {[%emt 0:00:55]} 14. Rd1 {[%emt 0:00:20]} Qc7 {[%emt 0:09:03]} 15. Bd2 {[%emt 0:02:18]} Rfd8 {[%emt 0:09:12]} 16. Be1 {[%emt 0:03:00]} Rd7 {[%emt 0:14:58]} 17. a5 {[%emt 0:02:53]} Rcd8 {[%emt 0:13:13]} 18. Ncd5 {[%emt 0:27:12]} Bxd5 {[%emt 0:00:24]} 19. exd5 {[%emt 0:00:09]} Nh5 {[%emt 0:04:50]} 20. c4 {[%emt 0:02:47]} Bg5 {[%emt 0:10:26]} 21. b4 {[%emt 0:05:26]} Re8 {[%emt 0:04:16]} 22. g3 {[%emt 0:16:38]} e4 {[%emt 0:04:03]} 23. Qe2 {[%emt 0:00:21]} Bxe3 {[%emt 0:02:53]} 24. fxe3 {[%emt 0:00:05]} Nf6 {[%emt 0:00:17]} 25. g4 {[%emt 0:01:51]} Qc8 {[%emt 0:02:30]} 26. Bg3 {[%emt 0:05:16]} Rdd8 {[%emt 0:00:49]} 27. h3 {[%emt 0:04:14]} Nh7 {[%emt 0:00:17]} 28. Rac1 {[%emt 0:02:26]} Ng5 {[%emt 0:00:38]} 29. Kg2 {[%emt 0:00:30]} Nf3 {[%emt 0:06:33]} 30. c5 {[%emt 0:00:57]} dxc5 {[%emt 0:00:03]} 31. Rxc5 {[%emt 0:01:47]} Qd7 {[%emt 0:02:01]} 32. d6 {[%emt 0:04:22]} Qa4 {[%emt 0:01:39]} 33. Qc2 {[%emt 0:03:04]} Qxb4 {[%emt 0:07:44]} 34. d7 {[%emt 0:00:24]} Rf8 {[%emt 0:00:04]} 35. Rc8 {[%emt 0:08:13]} Qb5 {[%emt 0:01:23]} 36. Rc5 {[%emt 0:03:41]} Qb4 {[%emt 0:00:26]} 37. Rcd5 {[%emt 0:00:32]} Qa3 {[%emt 0:01:23]} 38. Qxe4 {[%emt 0:00:42]} Ng5 {[%emt 0:00:24]} 39. Qd3 {[%emt 0:00:48]} Qb2+ {[%emt 0:01:56]} 40. Rd2 {[%emt 0:01:16]} Qf6 {[%emt 0:00:08]} 41. e4 {[%emt 0:04:30]} Ne6 {[%emt 0:13:04]} 42. Qf3 {[%emt 0:01:46]} Qxf3+ {[%emt 0:01:43]} 43. Kxf3 {[%emt 0:00:14]} f6 {[%emt 0:00:10]} 44. Bf2 {[%emt 0:13:04]} Ng5+ {[%emt 0:00:45]} 45. Ke3 {[%emt 0:00:04]} Rf7 {[%emt 0:01:08]} 46. Bh4 {[%emt 0:13:32]} Ne6 {[%emt 0:05:47]} 47. e5 {[%emt 0:00:05]} Nf8 {[%emt 0:05:33]} 48. exf6 {[%emt 0:01:48]} g5 {[%emt 0:00:37]} 49. Bg3 {[%emt 0:00:36]} Rdxd7 {[%emt 0:00:13]} 50. h4 {[%emt 0:00:45]} gxh4 {[%emt 0:02:38]} 51. Bxh4 {[%emt 0:00:03]} Rxd5 {[%emt 0:00:05]} 52. Rxd5 {[%emt 0:00:05]} Ng6 {[%emt 0:00:04]} 53. Rd8+ {[%emt 0:01:05]} Rf8 {[%emt 0:01:20]} 54. Rxf8+ {[%emt 0:00:05]} Kxf8 {[%emt 0:00:02]} 55. Be1 {[%emt 0:00:44]} Ne5 {[%emt 0:00:10]} 56. Ke4 {[%emt 0:00:18]} Nxg4 {[%emt 0:00:07]} 57. Kf5 {[%emt 0:00:11]} h5 {[%emt 0:02:23]} 58. Ke6 {[%emt 0:01:12]} Nh6 {[%emt 0:00:46]} 59. Kd7 {[%emt 0:00:26]} Ng4 {[%emt 0:02:59]} 60. Kc7 {[%emt 0:00:42]} Nxf6 {[%emt 0:00:04]} 61. Kxb7 {[%emt 0:00:08]} Ke8 {[%emt 0:01:11]} 62. Kxa6 {[%emt 0:00:05]} Kd7 {[%emt 0:00:12]} 63. Kb7 {[%emt 0:00:16]} Ne4 {[%emt 0:00:37]} 64. Kb8 {[%emt 0:01:22]} Nc5 {[%emt 0:00:44]} 65. Bf2 {[%emt 0:00:08]} Kc6 {[%emt 0:00:22]} 66. Bxc5 {[%emt 0:00:16]} Kb5 {[%emt 0:00:06]} 67. Bb6 {[%emt 0:01:15]} Ka6 {[%emt 0:00:11]} 68. Bd8 {[%emt 0:00:22]} h4 {[%emt 0:00:03]} 69. Bxh4 {[%emt 0:00:03]} Kxa5 1/2-1/2

[Event "49th Rilton Cup 2019-20"]
[Site "Stockholm"]
[Date "2019.12.30"]
[Round "4.7"]
[White "Ionov, Sergey"]
[Black "Bellon Lopez, Juan Manuel"]
[Result "1/2-1/2"]
[ECO "B41"]
[WhiteElo "2521"]
[BlackElo "2353"]
[Annotator "ChessBase"]
[PlyCount "57"]
[EventDate "2019.12.27"]
[EventType "swiss"]
[EventCountry "SWE"]
[SourceTitle "playchess.com"]
[Source "ChessBase"]
[SourceQuality "1"]
[TimeControl "40/5400+30:1800+30"]

1. e4 {[%emt 0:00:00]} c5 {[%emt 0:00:00]} 2. Nf3 {[%emt 0:00:08]} e6 {[%emt 0:00:07]} 3. d4 {[%emt 0:00:59]} cxd4 {[%emt 0:00:07]} 4. Nxd4 {[%emt 0:00:05]} a6 {[%emt 0:00:57]} 5. c4 {[%emt 0:00:29]} Nf6 {[%emt 0:01:19]} 6. Nc3 {[%emt 0:00:05]} Qc7 {[%emt 0:00:06]} 7. Be2 {[%emt 0:02:27]} Nc6 {[%emt 0:03:35]} 8. Nc2 {[%emt 0:14:26]} d6 {[%emt 0:04:12]} 9. O-O {[%emt 0:07:43]} b6 {[%emt 0:11:17]} 10. Be3 {[%emt 0:13:21]} Ne5 {[%emt 0:06:18]} 11. Rc1 {[%emt 0:03:24]} Bb7 {[%emt 0:01:28]} 12. f3 {[%emt 0:07:42]} Ned7 {[%emt 0:07:08]} 13. Qd2 {[%emt 0:03:58]} Be7 {[%emt 0:00:46]} 14. Rfd1 {[%emt 0:01:20]} O-O {[%emt 0:02:00]} 15. Nd4 {[%emt 0:02:27]} Rac8 {[%emt 0:03:00]} 16. Bf1 {[%emt 0:01:57]} Qb8 {[%emt 0:01:30]} 17. Kh1 {[%emt 0:03:22]} Rfe8 {[%emt 0:03:39]} 18. Bg1 {[%emt 0:02:46]} Bd8 {[%emt 0:05:25]} 19. b4 {[%emt 0:00:54]} Bc7 {[%emt 0:04:20]} 20. Rb1 {[%emt 0:02:41]} Ne5 {[%emt 0:07:01]} 21. Nb3 {[%emt 0:09:09]} Bd8 {[%emt 0:10:42]} 22. c5 {[%emt 0:07:23]} dxc5 {[%emt 0:02:20]} 23. bxc5 {[%emt 0:00:05]} b5 {[%emt 0:02:19]} 24. Nd4 {[%emt 0:01:25]} Ba5 {[%emt 0:00:58]} 25. Nb3 {[%emt 0:02:22]} Bc7 {[%emt 0:02:25]} 26. Nd4 {[%emt 0:01:41]} Ba5 {[%emt 0:02:09]} 27. Nb3 {[%emt 0:02:50]} Bc7 {[%emt 0:03:58]} 28. Nd4 {[%emt 0:03:20]} Ba5 {[%emt 0:01:41]} 29. Nb3 1/2-1/2

[Event "49th Rilton Cup 2019-20"]
[Site "Stockholm"]
[Date "2019.12.30"]
[Round "4.8"]
[White "Quesada Perez, Luis Ernesto"]
[Black "Vestby-Ellingsen, Mads"]
[Result "1/2-1/2"]
[ECO "A49"]
[WhiteElo "2499"]
[BlackElo "2346"]
[Annotator "ChessBase"]
[PlyCount "136"]
[EventDate "2019.12.27"]
[EventType "swiss"]
[EventCountry "SWE"]
[SourceTitle "playchess.com"]
[Source "ChessBase"]
[SourceQuality "1"]
[TimeControl "40/5400+30:1800+30"]

1. d4 {[%emt 0:03:44]} Nf6 {[%emt 0:00:00]} 2. Nf3 {[%emt 0:00:32]} g6 {[%emt 0:00:02]} 3. g3 {[%emt 0:00:14]} d5 {[%emt 0:00:45]} 4. Bg2 {[%emt 0:00:12]} Bg7 {[%emt 0:00:13]} 5. O-O {[%emt 0:00:08]} O-O {[%emt 0:00:12]} 6. c4 {[%emt 0:00:25]} dxc4 {[%emt 0:00:18]} 7. Na3 {[%emt 0:00:12]} c3 {[%emt 0:00:11]} 8. bxc3 {[%emt 0:00:05]} c5 {[%emt 0:00:08]} 9. e3 {[%emt 0:02:11]} Nc6 {[%emt 0:00:35]} 10. Qe2 {[%emt 0:00:26]} Nd5 {[%emt 0:09:40]} 11. Bb2 {[%emt 0:03:30]} Nb6 {[%emt 0:05:29]} 12. Rac1 {[%emt 0:14:47]} Qd5 {[%emt 0:17:37]} 13. c4 {[%emt 0:36:54]} Qh5 {[%emt 0:00:15]} 14. d5 {[%emt 0:00:06]} Ne5 {[%emt 0:13:39]} 15. Rc2 {[%emt 0:00:16]} Bg4 {[%emt 0:07:12]} 16. Bxe5 {[%emt 0:00:06]} Bxe5 {[%emt 0:00:18]} 17. h3 {[%emt 0:00:04]} Bxf3 {[%emt 0:00:25]} 18. Qxf3 {[%emt 0:00:04]} Qxf3 {[%emt 0:00:14]} 19. Bxf3 {[%emt 0:00:03]} Nc8 {[%emt 0:06:33]} 20. Nb1 {[%emt 0:00:22]} Nd6 {[%emt 0:00:46]} 21. Nd2 {[%emt 0:00:05]} f5 {[%emt 0:02:50]} 22. Rb1 {[%emt 0:01:04]} Kg7 {[%emt 0:06:02]} 23. Be2 {[%emt 0:03:26]} Bf6 {[%emt 0:03:50]} 24. Bd3 {[%emt 0:09:59]} Rae8 {[%emt 0:07:40]} 25. Rb3 {[%emt 0:02:11]} e6 {[%emt 0:08:26]} 26. dxe6 {[%emt 0:01:42]} Rxe6 {[%emt 0:00:20]} 27. Be2 {[%emt 0:00:10]} Rd8 {[%emt 0:03:32]} 28. Bf3 {[%emt 0:03:34]} Re7 {[%emt 0:00:07]} 29. Bd5 {[%emt 0:00:14]} b6 {[%emt 0:01:14]} 30. Kf1 {[%emt 0:04:17]} Ne8 {[%emt 0:00:53]} 31. a4 {[%emt 0:00:41]} Nc7 {[%emt 0:00:35]} 32. Bb7 {[%emt 0:03:14]} Rb8 {[%emt 0:01:33]} 33. Bg2 {[%emt 0:00:14]} Na6 {[%emt 0:00:19]} 34. Nf3 {[%emt 0:01:57]} Rd7 {[%emt 0:00:25]} 35. Ke2 {[%emt 0:00:41]} Nb4 {[%emt 0:01:01]} 36. Rd2 {[%emt 0:00:06]} Rxd2+ {[%emt 0:02:19]} 37. Nxd2 {[%emt 0:00:14]} a5 {[%emt 0:01:06]} 38. Nb1 {[%emt 0:06:14]} Na2 {[%emt 0:01:37]} 39. Rb5 {[%emt 0:02:47]} Nb4 {[%emt 0:00:26]} 40. g4 {[%emt 0:01:08]} fxg4 41. hxg4 {[%emt 0:30:01]} g5 {[%emt 0:24:14]} 42. Nd2 {[%emt 0:00:00]} Be5 {[%emt 0:00:35]} 43. Ne4 {[%emt 0:00:00]} h6 {[%emt 0:00:10]} 44. Nxc5 {[%emt 0:00:00]} bxc5 {[%emt 0:00:09]} 45. Rxc5 {[%emt 0:00:00]} Bd6 {[%emt 0:00:50]} 46. Rxa5 {[%emt 0:00:00]} Rc8 {[%emt 0:00:27]} 47. Bd5 {[%emt 0:00:00]} Rc5 {[%emt 0:01:04]} 48. Ra7+ {[%emt 0:00:00]} Rc7 {[%emt 0:00:20]} 49. Ra8 {[%emt 0:00:00]} Bc5 {[%emt 0:01:00]} 50. Be4 {[%emt 0:00:00]} Ra7 {[%emt 0:01:17]} 51. Rc8 {[%emt 0:00:00]} Be7 {[%emt 0:00:24]} 52. c5 {[%emt 0:00:00]} Rxa4 {[%emt 0:00:21]} 53. c6 {[%emt 0:00:00]} Ra2+ {[%emt 0:01:07]} 54. Kf3 {[%emt 0:00:00]} Ra1 {[%emt 0:01:31]} 55. Rb8 {[%emt 0:05:12]} Ra7 {[%emt 0:02:07]} 56. Ke2 {[%emt 0:02:00]} Rc7 {[%emt 0:00:16]} 57. Rb6 {[%emt 0:00:35]} Kf6 {[%emt 0:02:01]} 58. f4 {[%emt 0:00:42]} gxf4 {[%emt 0:01:36]} 59. exf4 {[%emt 0:00:07]} Bc5 {[%emt 0:00:36]} 60. Rb8 {[%emt 0:00:27]} Nxc6 {[%emt 0:00:32]} 61. Rh8 {[%emt 0:00:07]} Nd4+ {[%emt 0:00:29]} 62. Kd3 {[%emt 0:00:19]} Ne6 {[%emt 0:00:33]} 63. Rxh6+ {[%emt 0:00:08]} Ke7 {[%emt 0:00:06]} 64. f5 {[%emt 0:01:58]} Nf4+ {[%emt 0:00:11]} 65. Kd2 {[%emt 0:00:12]} Rd7+ {[%emt 0:00:18]} 66. Kc3 {[%emt 0:00:21]} Rd6 {[%emt 0:01:14]} 67. g5 {[%emt 0:01:04]} Bd4+ {[%emt 0:00:36]} 68. Kc4 {[%emt 0:00:19]} Rxh6 {[%emt 0:00:21]} 1/2-1/2

[Event "49th Rilton Cup 2019-20"]
[Site "Stockholm"]
[Date "2019.12.30"]
[Round "4.9"]
[White "Serarols Mabras, Bernat"]
[Black "Miezis, Normunds"]
[Result "1/2-1/2"]
[ECO "E46"]
[WhiteElo "2356"]
[BlackElo "2486"]
[Annotator "ChessBase"]
[PlyCount "61"]
[EventDate "2019.12.27"]
[EventType "swiss"]
[EventCountry "SWE"]
[SourceTitle "playchess.com"]
[Source "ChessBase"]
[SourceQuality "1"]
[TimeControl "40/5400+30:1800+30"]

1. d4 {[%emt 0:00:42]} Nf6 {[%emt 0:00:17]} 2. c4 {[%emt 0:00:06]} e6 {[%emt 0:00:31]} 3. Nc3 {[%emt 0:00:21]} Bb4 {[%emt 0:01:14]} 4. e3 {[%emt 0:00:20]} O-O {[%emt 0:02:25]} 5. Bd2 {[%emt 0:00:12]} d5 {[%emt 0:06:45]} 6. Nf3 {[%emt 0:01:48]} c5 {[%emt 0:08:41]} 7. a3 {[%emt 0:09:05]} Bxc3 {[%emt 0:02:09]} 8. Bxc3 {[%emt 0:01:31]} Ne4 {[%emt 0:01:11]} 9. Rc1 {[%emt 0:01:27]} Nxc3 {[%emt 0:04:45]} 10. Rxc3 {[%emt 0:01:37]} cxd4 {[%emt 0:00:12]} 11. Nxd4 {[%emt 0:01:45]} dxc4 {[%emt 0:12:28]} 12. Bxc4 {[%emt 0:02:01]} a6 {[%emt 0:00:25]} 13. O-O {[%emt 0:03:52]} b5 {[%emt 0:05:05]} 14. Be2 {[%emt 0:02:23]} Bb7 {[%emt 0:09:13]} 15. Bf3 {[%emt 0:03:21]} Ra7 {[%emt 0:02:53]} 16. Bxb7 {[%emt 0:09:04]} Rxb7 {[%emt 0:03:24]} 17. Qf3 {[%emt 0:02:52]} Rd7 {[%emt 0:00:51]} 18. h3 {[%emt 0:04:49]} g6 {[%emt 0:05:15]} 19. Qg3 {[%emt 0:02:50]} Rd5 {[%emt 0:05:37]} 20. Rfc1 {[%emt 0:07:15]} Nd7 {[%emt 0:07:48]} 21. b4 {[%emt 0:10:10]} Ne5 {[%emt 0:03:01]} 22. Nc6 {[%emt 0:03:48]} Nxc6 {[%emt 0:03:01]} 23. Rxc6 {[%emt 0:00:07]} a5 {[%emt 0:00:43]} 24. bxa5 {[%emt 0:07:50]} Qxa5 {[%emt 0:00:27]} 25. R1c3 {[%emt 0:02:52]} b4 {[%emt 0:03:36]} 26. axb4 {[%emt 0:00:33]} Qxb4 {[%emt 0:00:09]} 27. Rc8 {[%emt 0:01:31]} Rxc8 {[%emt 0:02:22]} 28. Rxc8+ {[%emt 0:00:06]} Kg7 {[%emt 0:00:08]} 29. Rc1 {[%emt 0:00:19]} Qe4 {[%emt 0:02:29]} 30. Qf4 {[%emt 0:01:00]} Qxf4 {[%emt 0:00:14]} 31. exf4 {[%emt 0:00:04]} 1/2-1/2

[Event "49th Rilton Cup 2019-20"]
[Site "Stockholm"]
[Date "2019.12.30"]
[Round "4.10"]
[White "Nesterov, Arseniy"]
[Black "Sidhant, Mohapatra"]
[Result "1-0"]
[ECO "D11"]
[WhiteElo "2482"]
[BlackElo "2338"]
[Annotator "ChessBase"]
[PlyCount "77"]
[EventDate "2019.12.27"]
[EventType "swiss"]
[EventCountry "SWE"]
[SourceTitle "playchess.com"]
[Source "ChessBase"]
[SourceQuality "1"]
[TimeControl "40/5400+30:1800+30"]

1. d4 {[%emt 0:00:00]} d5 {[%emt 0:00:15]} 2. c4 {[%emt 0:00:00]} c6 {[%emt 0:00:58]} 3. Nf3 {[%emt 0:00:00]} Nf6 {[%emt 0:00:20]} 4. g3 {[%emt 0:00:00]} Bg4 {[%emt 0:05:45]} 5. Ne5 {[%emt 0:07:23]} Bf5 {[%emt 0:00:45]} 6. cxd5 {[%emt 0:00:59]} cxd5 {[%emt 0:02:07]} 7. Nc3 {[%emt 0:00:09]} Nc6 {[%emt 0:02:12]} 8. f3 {[%emt 0:07:02]} Bd7 {[%emt 0:00:55]} 9. Bg2 {[%emt 0:04:34]} e6 {[%emt 0:00:23]} 10. Nxd7 {[%emt 0:00:53]} Qxd7 {[%emt 0:08:53]} 11. O-O {[%emt 0:02:21]} Be7 {[%emt 0:00:16]} 12. Be3 {[%emt 0:01:46]} O-O {[%emt 0:00:11]} 13. Bf2 {[%emt 0:00:16]} Rfd8 {[%emt 0:00:15]} 14. Qd3 {[%emt 0:02:48]} Rac8 {[%emt 0:02:07]} 15. Rac1 {[%emt 0:03:00]} Qc7 {[%emt 0:01:18]} 16. e3 {[%emt 0:03:39]} Qb8 {[%emt 0:02:34]} 17. Rfd1 {[%emt 0:05:47]} a6 {[%emt 0:02:36]} 18. Ne2 {[%emt 0:05:08]} b5 {[%emt 0:01:23]} 19. Kh1 {[%emt 0:06:37]} Rd7 {[%emt 0:08:48]} 20. e4 {[%emt 0:06:11]} Rdc7 {[%emt 0:00:17]} 21. e5 {[%emt 0:01:58]} Nd7 {[%emt 0:00:08]} 22. f4 {[%emt 0:00:12]} g6 {[%emt 0:06:51]} 23. g4 {[%emt 0:01:40]} Nb6 {[%emt 0:00:46]} 24. f5 {[%emt 0:06:36]} Bg5 {[%emt 0:01:11]} 25. Rb1 {[%emt 0:02:49]} Nb4 {[%emt 0:02:15]} 26. Qb3 {[%emt 0:00:46]} Rc4 {[%emt 0:00:26]} 27. f6 {[%emt 0:05:16]} a5 {[%emt 0:01:28]} 28. h4 {[%emt 0:01:06]} Bh6 {[%emt 0:02:19]} 29. a3 {[%emt 0:05:14]} a4 {[%emt 0:02:30]} 30. Qh3 {[%emt 0:01:51]} Rc2 {[%emt 0:02:14]} 31. Bf3 {[%emt 0:00:42]} Nc6 {[%emt 0:00:22]} 32. g5 {[%emt 0:00:11]} Bf8 {[%emt 0:01:08]} 33. h5 {[%emt 0:00:06]} Nd8 {[%emt 0:00:24]} 34. hxg6 {[%emt 0:00:58]} fxg6 {[%emt 0:00:10]} 35. Bg4 {[%emt 0:00:13]} R8c6 {[%emt 0:00:54]} 36. Rdc1 {[%emt 0:00:58]} Qc8 {[%emt 0:00:41]} 37. Rxc2 {[%emt 0:00:04]} Rxc2 {[%emt 0:00:08]} 38. Kg2 {[%emt 0:02:12]} h6 {[%emt 0:05:29]} 39. Qd3 {[%emt 0:01:20]} 1-0